[Event "*** SCC Grand Prix: Titled Tuesday Blitz"]
[Site "Chess.com"]
[Date "2020.06.09"]
[Round "8"]
[White "viktorskliarov"]
[Black "OdChessWorld"]
[Result "0-1"]
[WhiteElo "2599"]
[BlackElo "2794"]
[TimeControl "180+1"]
[EndTime "10:37:04 PDT"]
[Termination "OdChessWorld won by resignation"]

1. e4 {[%clk 0:02:55.3]} 1... c6 {[%clk 0:02:59.6]} 2. d4 {[%clk 0:02:54.8]}
2... d5 {[%clk 0:02:59.9]} 3. exd5 {[%clk 0:02:54.9]} 3... cxd5 {[%clk 0:03:00]}
4. Bd3 {[%clk 0:02:55.6]} 4... Nf6 {[%clk 0:03:00.3]} 5. Ne2 {[%clk 0:02:55.3]}
5... Nc6 {[%clk 0:03:01]} 6. c3 {[%clk 0:02:55.3]} 6... Bg4 {[%clk 0:03:01]} 7.
O-O {[%clk 0:02:55]} 7... e6 {[%clk 0:02:59.1]} 8. Qe1 {[%clk 0:02:54.9]} 8...
Bxe2 {[%clk 0:02:58.6]} 9. Qxe2 {[%clk 0:02:54.8]} 9... Bd6 {[%clk 0:02:59.2]}
10. f4 {[%clk 0:02:54.6]} 10... O-O {[%clk 0:02:57.6]} 11. f5 {[%clk 0:02:53.8]}
11... e5 {[%clk 0:02:57.4]} 12. dxe5 {[%clk 0:02:43.3]} 12... Nxe5 {[%clk
0:02:50.8]} 13. Nd2 {[%clk 0:02:20.4]} 13... Qb6+ {[%clk 0:02:32.4]} 14. Kh1
{[%clk 0:02:15.7]} 14... Rae8 {[%clk 0:02:25.2]} 15. Nf3 {[%clk 0:02:14.5]}
15... Neg4 {[%clk 0:02:13.7]} 16. Qc2 {[%clk 0:02:07.5]} 16... Bc5 {[%clk
0:02:13.8]} 17. Bg5 {[%clk 0:01:38.7]} 17... Nf2+ {[%clk 0:02:10.6]} 18. Rxf2
{[%clk 0:01:38.4]} 18... Bxf2 {[%clk 0:02:11.5]} 19. Bxf6 {[%clk 0:01:38.5]}
19... gxf6 {[%clk 0:02:12.4]} 20. Rf1 {[%clk 0:01:30.8]} 20... Be3 {[%clk
0:02:09.4]} 21. b4 {[%clk 0:01:12.5]} 21... Re7 {[%clk 0:02:00.2]} 22. a3 {[%clk
0:00:55.2]} 22... Rfe8 {[%clk 0:01:57.8]} 23. c4 {[%clk 0:00:55.6]} 23... dxc4
{[%clk 0:01:52.4]} 24. Bxc4 {[%clk 0:00:49.7]} 24... Kg7 {[%clk 0:01:41.3]} 25.
Bb3 {[%clk 0:00:45.3]} 25... Rc7 {[%clk 0:01:35.1]} 26. Qd3 {[%clk 0:00:40.3]}
26... Rec8 {[%clk 0:01:31.5]} 27. Qd5 {[%clk 0:00:31.6]} 27... Qa6 {[%clk
0:01:18.9]} 28. Re1 {[%clk 0:00:23.3]} 28... Bf2 {[%clk 0:01:04.6]} 29. Rd1
{[%clk 0:00:21.2]} 29... Qxa3 {[%clk 0:01:03.7]} 30. h4 {[%clk 0:00:18.2]} 30...
Qxb4 {[%clk 0:00:57.3]} 31. Kh2 {[%clk 0:00:18.5]} 31... Qf4+ {[%clk 0:00:54.4]}
32. Kh1 {[%clk 0:00:16.6]} 32... Bxh4 {[%clk 0:00:44.5]} 33. Rd4 {[%clk
0:00:11.2]} 33... Qc1+ {[%clk 0:00:19.8]} 34. Bd1 {[%clk 0:00:10.8]} 34... Bg5
{[%clk 0:00:19.3]} 35. Nxg5 {[%clk 0:00:07.7]} 35... fxg5 {[%clk 0:00:12.6]} 36.
f6+ {[%clk 0:00:07.9]} 36... Kxf6 {[%clk 0:00:10.7]} 37. Qd6+ {[%clk 0:00:06.5]}
37... Kg7 {[%clk 0:00:10.7]} 38. Qe5+ {[%clk 0:00:06.1]} 38... f6 {[%clk
0:00:11.1]} 39. Qf5 {[%clk 0:00:06.3]} 39... Qc6 {[%clk 0:00:08.9]} 40. Bf3
{[%clk 0:00:05.5]} 40... Qc1+ {[%clk 0:00:06.8]} 41. Kh2 {[%clk 0:00:05.1]}
41... Qc5 {[%clk 0:00:07.5]} 42. Rd5 {[%clk 0:00:04.9]} 42... Qe7 {[%clk
0:00:07.2]} 43. Be4 {[%clk 0:00:05.1]} 43... Rh8 {[%clk 0:00:07.2]} 44. Bb1
{[%clk 0:00:04.4]} 44... Qf7 {[%clk 0:00:07.5]} 45. Rd6 {[%clk 0:00:03.9]} 45...
Re7 {[%clk 0:00:08.1]} 46. Rd5 {[%clk 0:00:03.8]} 46... Qh5+ {[%clk 0:00:08.2]}
47. Kg3 {[%clk 0:00:03.4]} 47... Qh4+ {[%clk 0:00:08.2]} 48. Kf3 {[%clk
0:00:03.9]} 48... Qf4+ {[%clk 0:00:08.4]} 49. Qxf4 {[%clk 0:00:04]} 49... gxf4
{[%clk 0:00:09.3]} 50. Kxf4 {[%clk 0:00:04.6]} 50... Rhe8 {[%clk 0:00:09.9]} 51.
Bf5 {[%clk 0:00:05]} 51... Re5 {[%clk 0:00:10]} 52. Rd7+ {[%clk 0:00:04.6]}
52... R8e7 {[%clk 0:00:10.6]} 53. Rd3 {[%clk 0:00:05.2]} 53... Rc5 {[%clk
0:00:10.5]} 54. Rg3+ {[%clk 0:00:05.6]} 54... Kf8 {[%clk 0:00:10.4]} 55. Rd3
{[%clk 0:00:06.2]} 55... Ree5 {[%clk 0:00:10.5]} 56. g4 {[%clk 0:00:06]} 56...
Rxf5+ {[%clk 0:00:09.9]} 57. gxf5 {[%clk 0:00:06]} 57... Rc7 {[%clk 0:00:09.8]}
58. Rd6 {[%clk 0:00:05.8]} 58... Ke7 {[%clk 0:00:09.8]} 59. Re6+ {[%clk
0:00:06.3]} 59... Kf7 {[%clk 0:00:10.5]} 60. Rd6 {[%clk 0:00:07]} 60... a5
{[%clk 0:00:10.8]} 61. Rb6 {[%clk 0:00:06.7]} 61... a4 {[%clk 0:00:10.7]} 62.
Rb4 {[%clk 0:00:05.9]} 62... b5 {[%clk 0:00:11]} 63. Rxb5 {[%clk 0:00:06]} 63...
Ra7 {[%clk 0:00:11.9]} 64. Rb2 {[%clk 0:00:05.3]} 64... a3 {[%clk 0:00:12.8]}
65. Ra2 {[%clk 0:00:06.1]} 65... Ra4+ {[%clk 0:00:12.9]} 66. Ke3 {[%clk
0:00:05.6]} 66... h5 {[%clk 0:00:13.8]} 67. Kd3 {[%clk 0:00:06.2]} 67... Kg7
{[%clk 0:00:14.4]} 68. Kc3 {[%clk 0:00:07.1]} 68... Kh6 {[%clk 0:00:15]} 69. Kb3
{[%clk 0:00:08]} 69... Ra7 {[%clk 0:00:15.4]} 70. Rg2 {[%clk 0:00:07.7]} 70...
a2 {[%clk 0:00:15.8]} 71. Rg6+ {[%clk 0:00:08.6]} 71... Kh7 {[%clk 0:00:16.3]}
72. Rxf6 {[%clk 0:00:09.5]} 72... a1=Q {[%clk 0:00:16.5]} 73. Rf7+ {[%clk
0:00:10]} 73... Rxf7 {[%clk 0:00:16]} 0-1

[Event "*** SCC Grand Prix: Titled Tuesday Blitz"]
[Site "Chess.com"]
[Date "2020.06.09"]
[Round "8"]
[White "colegiodemadrid"]
[Black "GuuBol"]
[Result "0-1"]
[WhiteElo "2346"]
[BlackElo "2238"]
[TimeControl "180+1"]
[EndTime "10:37:09 PDT"]
[Termination "GuuBol won by resignation"]

1. d4 {[%clk 0:03:00.9]} 1... d5 {[%clk 0:02:59.4]} 2. Bf4 {[%clk 0:02:58]} 2...
e6 {[%clk 0:02:59.4]} 3. e3 {[%clk 0:02:57.9]} 3... Nf6 {[%clk 0:02:59.6]} 4.
Nd2 {[%clk 0:02:57.2]} 4... c5 {[%clk 0:03:00.1]} 5. c3 {[%clk 0:02:57]} 5...
Nc6 {[%clk 0:03:00.4]} 6. Ngf3 {[%clk 0:02:56]} 6... Be7 {[%clk 0:03:00.7]} 7.
Bd3 {[%clk 0:02:54.5]} 7... Nh5 {[%clk 0:02:59.6]} 8. Bg3 {[%clk 0:02:50.8]}
8... Nxg3 {[%clk 0:02:59.5]} 9. hxg3 {[%clk 0:02:51.7]} 9... h6 {[%clk
0:02:59.2]} 10. g4 {[%clk 0:02:47.9]} 10... Bd7 {[%clk 0:02:54]} 11. dxc5 {[%clk
0:02:38.5]} 11... Bxc5 {[%clk 0:02:53.4]} 12. g5 {[%clk 0:02:38.7]} 12... Qb6
{[%clk 0:02:51.7]} 13. gxh6 {[%clk 0:02:30.8]} 13... Rxh6 {[%clk 0:02:42.4]} 14.
Rxh6 {[%clk 0:02:30.6]} 14... gxh6 {[%clk 0:02:43.3]} 15. Qb3 {[%clk 0:02:30.8]}
15... O-O-O {[%clk 0:02:38.2]} 16. Qxb6 {[%clk 0:02:28.2]} 16... Bxb6 {[%clk
0:02:39.1]} 17. O-O-O {[%clk 0:02:28]} 17... Rg8 {[%clk 0:02:35.4]} 18. g3
{[%clk 0:02:27.1]} 18... Ne7 {[%clk 0:02:23.5]} 19. Rh1 {[%clk 0:02:17.2]} 19...
Rh8 {[%clk 0:02:23.4]} 20. Ne5 {[%clk 0:02:12.1]} 20... Be8 {[%clk 0:02:22.9]}
21. Ng4 {[%clk 0:02:10.4]} 21... Ng8 {[%clk 0:02:18.8]} 22. Nf3 {[%clk
0:01:59.7]} 22... Kd8 {[%clk 0:02:09.5]} 23. Kd2 {[%clk 0:01:40.4]} 23... Ke7
{[%clk 0:02:09]} 24. b3 {[%clk 0:01:34.6]} 24... f6 {[%clk 0:02:04.4]} 25. c4
{[%clk 0:01:28.9]} 25... dxc4 {[%clk 0:01:58.8]} 26. Bxc4 {[%clk 0:01:29.8]}
26... Bc6 {[%clk 0:01:54.1]} 27. Ke2 {[%clk 0:01:29]} 27... Bc7 {[%clk
0:01:20.7]} 28. Rh2 {[%clk 0:01:16.6]} 28... h5 {[%clk 0:01:15.2]} 29. Nd4
{[%clk 0:00:39.2]} 29... Bd7 {[%clk 0:01:05.9]} 30. Rh4 {[%clk 0:00:27.2]} 30...
f5 {[%clk 0:01:03.6]} 31. Nh2 {[%clk 0:00:23.4]} 31... Nf6 {[%clk 0:01:03.5]}
32. Nhf3 {[%clk 0:00:20.6]} 32... e5 {[%clk 0:00:50.3]} 33. Nb5 {[%clk
0:00:19.3]} 33... Bb8 {[%clk 0:00:45.4]} 34. Nc3 {[%clk 0:00:18.4]} 34... Be6
{[%clk 0:00:42.6]} 35. Bxe6 {[%clk 0:00:17.1]} 35... Kxe6 {[%clk 0:00:43.5]} 36.
Ng5+ {[%clk 0:00:17.4]} 36... Ke7 {[%clk 0:00:42.5]} 37. Rb4 {[%clk 0:00:17.7]}
37... b6 {[%clk 0:00:42.7]} 38. a4 {[%clk 0:00:15.5]} 38... Rc8 {[%clk
0:00:41.7]} 39. Nb5 {[%clk 0:00:13]} 39... Rc2+ {[%clk 0:00:38.3]} 40. Kf1
{[%clk 0:00:12.6]} 40... Ng4 {[%clk 0:00:38]} 41. Nh3 {[%clk 0:00:11.4]} 41...
e4 {[%clk 0:00:28.8]} 42. Nd4 {[%clk 0:00:10.7]} 42... Rc1+ {[%clk 0:00:26.9]}
43. Kg2 {[%clk 0:00:10.2]} 43... Kf6 {[%clk 0:00:26.6]} 44. Rc4 {[%clk
0:00:08.2]} 44... Rxc4 {[%clk 0:00:26]} 45. bxc4 {[%clk 0:00:09.1]} 45... Bd6
{[%clk 0:00:25.4]} 46. Nf4 {[%clk 0:00:08.8]} 46... Ne5 {[%clk 0:00:22.5]} 47.
Nxh5+ {[%clk 0:00:07.9]} 47... Kg5 {[%clk 0:00:20.2]} 48. Nf4 {[%clk 0:00:05.7]}
48... Nxc4 {[%clk 0:00:20.2]} 49. Nd5 {[%clk 0:00:04.6]} 49... Nb2 {[%clk
0:00:18.7]} 50. Nb5 {[%clk 0:00:05]} 50... Bb8 {[%clk 0:00:17.8]} 51. Ndc3
{[%clk 0:00:05.2]} 51... Kf6 {[%clk 0:00:17.4]} 52. Nd5+ {[%clk 0:00:04.4]}
52... Ke5 {[%clk 0:00:17.1]} 53. Ne7 {[%clk 0:00:03.9]} 53... Ke6 {[%clk
0:00:16.6]} 54. Ng6 {[%clk 0:00:03.3]} 54... a6 {[%clk 0:00:16.5]} 55. Nd4+
{[%clk 0:00:02.4]} 55... Kd5 {[%clk 0:00:15.7]} 56. Nh4 {[%clk 0:00:03.2]} 56...
Nxa4 {[%clk 0:00:14.9]} 57. Nhxf5 {[%clk 0:00:03.8]} 57... b5 {[%clk 0:00:14.8]}
58. g4 {[%clk 0:00:04.7]} 58... b4 {[%clk 0:00:15.1]} 59. g5 {[%clk 0:00:05.6]}
59... Nc5 {[%clk 0:00:13.8]} 60. g6 {[%clk 0:00:06.5]} 60... Be5 {[%clk
0:00:13.9]} 61. Ne2 {[%clk 0:00:04.8]} 61... b3 {[%clk 0:00:10.4]} 62. g7 {[%clk
0:00:04.1]} 62... Bxg7 {[%clk 0:00:09.9]} 63. Nxg7 {[%clk 0:00:05]} 63... Na4
{[%clk 0:00:09.2]} 64. Nf5 {[%clk 0:00:03.7]} 64... b2 {[%clk 0:00:09.3]} 65.
Ne7+ {[%clk 0:00:03.5]} 65... Ke6 {[%clk 0:00:08.8]} 66. Nc6 {[%clk 0:00:03.1]}
66... b1=Q {[%clk 0:00:08.6]} 67. Ncd4+ {[%clk 0:00:04]} 67... Kf7 {[%clk
0:00:08.5]} 68. Ng3 {[%clk 0:00:04.6]} 68... Nc3 {[%clk 0:00:08.6]} 69. Ngf5
{[%clk 0:00:03.9]} 69... a5 {[%clk 0:00:08.7]} 70. Ng3 {[%clk 0:00:04.2]} 70...
a4 {[%clk 0:00:09]} 71. Nde2 {[%clk 0:00:04.4]} 71... Nxe2 {[%clk 0:00:08.9]}
72. Nxe2 {[%clk 0:00:04.3]} 72... a3 {[%clk 0:00:09.8]} 73. Nc3 {[%clk
0:00:04.8]} 73... Qb3 {[%clk 0:00:10.1]} 74. Nxe4 {[%clk 0:00:04.2]} 74... Qd5
{[%clk 0:00:10]} 75. f3 {[%clk 0:00:04]} 75... a2 {[%clk 0:00:10.2]} 0-1

[Event "*** SCC Grand Prix: Titled Tuesday Blitz"]
[Site "Chess.com"]
[Date "2020.06.09"]
[Round "8"]
[White "Firouzja2003"]
[Black "wonderfultime"]
[Result "1-0"]
[WhiteElo "3143"]
[BlackElo "3005"]
[TimeControl "180+1"]
[EndTime "10:37:10 PDT"]
[Termination "Firouzja2003 won by resignation"]

1. e4 {[%clk 0:03:00.9]} 1... c5 {[%clk 0:03:00.1]} 2. Nf3 {[%clk 0:03:00.6]}
2... Nf6 {[%clk 0:03:00.6]} 3. e5 {[%clk 0:03:00]} 3... Nd5 {[%clk 0:03:01.1]}
4. Nc3 {[%clk 0:03:00.6]} 4... e6 {[%clk 0:03:01.7]} 5. Ne4 {[%clk 0:03:00.1]}
5... f5 {[%clk 0:03:01.2]} 6. Nc3 {[%clk 0:02:37.2]} 6... Ne7 {[%clk 0:02:49.4]}
7. d4 {[%clk 0:02:33.3]} 7... cxd4 {[%clk 0:02:48.7]} 8. Nxd4 {[%clk 0:02:33.5]}
8... a6 {[%clk 0:02:46.4]} 9. Qh5+ {[%clk 0:02:15.8]} 9... g6 {[%clk 0:02:30]}
10. Qh4 {[%clk 0:02:08.3]} 10... Nec6 {[%clk 0:02:20.7]} 11. Bg5 {[%clk
0:01:41.4]} 11... Be7 {[%clk 0:02:19.6]} 12. Bxe7 {[%clk 0:01:28.8]} 12... Qxe7
{[%clk 0:02:20.5]} 13. Qxe7+ {[%clk 0:01:26.1]} 13... Kxe7 {[%clk 0:02:21.4]}
14. Nf3 {[%clk 0:01:26.7]} 14... g5 {[%clk 0:01:44.8]} 15. Nxg5 {[%clk
0:01:19.2]} 15... Nxe5 {[%clk 0:01:45.2]} 16. f4 {[%clk 0:01:19.7]} 16... Ng6
{[%clk 0:01:39.4]} 17. g3 {[%clk 0:01:19.9]} 17... Nc6 {[%clk 0:01:29.5]} 18.
Bg2 {[%clk 0:01:18.8]} 18... h6 {[%clk 0:01:28.5]} 19. Nf3 {[%clk 0:01:06.2]}
19... Rg8 {[%clk 0:01:20.2]} 20. Kf2 {[%clk 0:00:58.9]} 20... Kf6 {[%clk
0:01:11.1]} 21. Rad1 {[%clk 0:00:55.7]} 21... d5 {[%clk 0:01:05.9]} 22. Na4
{[%clk 0:00:48.5]} 22... b5 {[%clk 0:00:46.9]} 23. Nc5 {[%clk 0:00:48.3]} 23...
Ra7 {[%clk 0:00:47]} 24. Rhe1 {[%clk 0:00:47.4]} 24... Rc7 {[%clk 0:00:46.3]}
25. c3 {[%clk 0:00:44.7]} 25... Na5 {[%clk 0:00:38.4]} 26. b4 {[%clk 0:00:43.1]}
26... Nc4 {[%clk 0:00:38.5]} 27. Nd4 {[%clk 0:00:43.3]} 27... e5 {[%clk
0:00:25]} 28. Bxd5 {[%clk 0:00:39.2]} 28... Rd8 {[%clk 0:00:20.7]} 29. Nde6
{[%clk 0:00:36.9]} 29... Bxe6 {[%clk 0:00:18.5]} 30. Nxe6 {[%clk 0:00:37.3]}
30... Rxd5 {[%clk 0:00:11.8]} 31. Nxc7 {[%clk 0:00:36.5]} 31... Rxd1 {[%clk
0:00:12.4]} 32. Rxd1 {[%clk 0:00:37]} 32... exf4 {[%clk 0:00:13.1]} 33. Nd5+
{[%clk 0:00:29.4]} 33... Ke5 {[%clk 0:00:13.5]} 34. Nxf4 {[%clk 0:00:26.7]}
34... Nxf4 {[%clk 0:00:13.8]} 35. gxf4+ {[%clk 0:00:27.6]} 35... Kxf4 {[%clk
0:00:14.1]} 36. Rd8 {[%clk 0:00:16.7]} 36... Ke4 {[%clk 0:00:12.3]} 37. Ra8
{[%clk 0:00:09.1]} 37... Kd3 {[%clk 0:00:02.6]} 38. Rxa6 {[%clk 0:00:09.1]}
38... Ne5 {[%clk 0:00:03.1]} 39. h3 {[%clk 0:00:04]} 39... Kxc3 {[%clk
0:00:02.8]} 40. Rxh6 {[%clk 0:00:04.4]} 40... Kxb4 {[%clk 0:00:03.1]} 41. Rf6
{[%clk 0:00:03.6]} 41... Nd3+ {[%clk 0:00:02.4]} 42. Ke3 {[%clk 0:00:03]} 42...
Nc1 {[%clk 0:00:02.9]} 43. Rxf5 {[%clk 0:00:03.3]} 43... Nxa2 {[%clk 0:00:03.5]}
44. h4 {[%clk 0:00:04]} 44... Kc4 {[%clk 0:00:02.4]} 45. h5 {[%clk 0:00:03.4]}
45... b4 {[%clk 0:00:03]} 46. h6 {[%clk 0:00:02.2]} 46... b3 {[%clk 0:00:02.9]}
47. Rf1 {[%clk 0:00:02.4]} 47... b2 {[%clk 0:00:01.8]} 48. Rb1 {[%clk
0:00:02.7]} 48... Nc3 {[%clk 0:00:01.5]} 49. Rxb2 {[%clk 0:00:03.2]} 49... Nd1+
{[%clk 0:00:02.4]} 50. Kf3 {[%clk 0:00:03.5]} 50... Nxb2 {[%clk 0:00:03.3]} 51.
h7 {[%clk 0:00:04]} 51... Nd3 {[%clk 0:00:04.1]} 52. h8=Q {[%clk 0:00:04.6]}
52... Nc5 {[%clk 0:00:05]} 53. Ke3 {[%clk 0:00:05]} 53... Kd5 {[%clk 0:00:05]}
54. Qd4+ {[%clk 0:00:05.3]} 54... Kc6 {[%clk 0:00:05.6]} 55. Qc4 {[%clk
0:00:05.5]} 55... Kd6 {[%clk 0:00:05.7]} 56. Kf4 {[%clk 0:00:05.7]} 56... Ne6+
{[%clk 0:00:05.3]} 57. Kf5 {[%clk 0:00:06]} 57... Nc5 {[%clk 0:00:05.3]} 58. Qf7
{[%clk 0:00:04.8]} 58... Kc6 {[%clk 0:00:03.9]} 59. Ke5 {[%clk 0:00:04.6]} 59...
Nd7+ {[%clk 0:00:04.1]} 60. Kd4 {[%clk 0:00:04.9]} 60... Nb6 {[%clk 0:00:04.2]}
61. Qe8+ {[%clk 0:00:04.4]} 61... Kc7 {[%clk 0:00:04.4]} 62. Kc5 {[%clk
0:00:03.9]} 62... Nd7+ {[%clk 0:00:04.8]} 63. Kb5 {[%clk 0:00:04.2]} 63... Kd6
{[%clk 0:00:04]} 64. Qe3 {[%clk 0:00:04.2]} 64... Nf6 {[%clk 0:00:03.8]} 65.
Qd4+ {[%clk 0:00:04.1]} 65... Ke6 {[%clk 0:00:04]} 66. Kc6 {[%clk 0:00:04.8]}
66... Kf7 {[%clk 0:00:03.5]} 67. Kd6 {[%clk 0:00:04.5]} 67... Ne8+ {[%clk
0:00:03.7]} 68. Ke5 {[%clk 0:00:04.8]} 68... Ke7 {[%clk 0:00:03.9]} 69. Qa7+
{[%clk 0:00:04.7]} 69... Kd8 {[%clk 0:00:04.2]} 70. Kd5 {[%clk 0:00:04.9]} 70...
Kc8 {[%clk 0:00:01.1]} 71. Kc6 {[%clk 0:00:05]} 1-0

[Event "*** SCC Grand Prix: Titled Tuesday Blitz"]
[Site "Chess.com"]
[Date "2020.06.09"]
[Round "8"]
[White "Haykoooo0o"]
[Black "Angel_Hranitel_37"]
[Result "0-1"]
[WhiteElo "2540"]
[BlackElo "2394"]
[TimeControl "180+1"]
[EndTime "10:37:12 PDT"]
[Termination "Angel_Hranitel_37 won by resignation"]

1. e4 {[%clk 0:03:00.9]} 1... c5 {[%clk 0:02:59.3]} 2. Nc3 {[%clk 0:02:59.3]}
2... Nc6 {[%clk 0:02:59]} 3. Bb5 {[%clk 0:02:58.8]} 3... Nd4 {[%clk 0:02:59]} 4.
Nf3 {[%clk 0:02:58.9]} 4... e6 {[%clk 0:02:58.6]} 5. O-O {[%clk 0:02:58.6]} 5...
Ne7 {[%clk 0:02:58.4]} 6. Re1 {[%clk 0:02:58.5]} 6... a6 {[%clk 0:02:55.7]} 7.
Bd3 {[%clk 0:02:57.9]} 7... Nec6 {[%clk 0:02:55.4]} 8. b3 {[%clk 0:02:57.2]}
8... g6 {[%clk 0:02:41]} 9. Bb2 {[%clk 0:02:56]} 9... Bg7 {[%clk 0:02:41.3]} 10.
Nxd4 {[%clk 0:02:53.6]} 10... Nxd4 {[%clk 0:02:39.7]} 11. Rb1 {[%clk 0:02:53.1]}
11... O-O {[%clk 0:02:39.4]} 12. e5 {[%clk 0:02:53.5]} 12... d6 {[%clk
0:02:32.7]} 13. exd6 {[%clk 0:02:53]} 13... Qxd6 {[%clk 0:02:33.6]} 14. Ne4
{[%clk 0:02:53.5]} 14... Qc7 {[%clk 0:02:31.8]} 15. c3 {[%clk 0:02:34.4]} 15...
Nf5 {[%clk 0:02:25.4]} 16. Ng3 {[%clk 0:02:31.2]} 16... Rd8 {[%clk 0:02:00.5]}
17. Nxf5 {[%clk 0:02:27.3]} 17... exf5 {[%clk 0:02:01.4]} 18. Be2 {[%clk
0:02:25.8]} 18... b5 {[%clk 0:01:59.5]} 19. Bf3 {[%clk 0:02:25.4]} 19... Ra7
{[%clk 0:01:56.5]} 20. d4 {[%clk 0:02:21.2]} 20... cxd4 {[%clk 0:00:49.7]} 21.
cxd4 {[%clk 0:02:22.1]} 21... Qa5 {[%clk 0:00:45.3]} 22. d5 {[%clk 0:02:18.7]}
22... Bxb2 {[%clk 0:00:38.7]} 23. Rxb2 {[%clk 0:02:18.5]} 23... Rad7 {[%clk
0:00:39.3]} 24. Rbe2 {[%clk 0:02:11.9]} 24... Qc3 {[%clk 0:00:24.3]} 25. Re3
{[%clk 0:02:02.9]} 25... Qf6 {[%clk 0:00:24.2]} 26. Rd3 {[%clk 0:01:53.6]} 26...
Bb7 {[%clk 0:00:23.8]} 27. Qd2 {[%clk 0:01:49]} 27... Kg7 {[%clk 0:00:20]} 28.
g3 {[%clk 0:01:35.2]} 28... h5 {[%clk 0:00:18.7]} 29. h4 {[%clk 0:01:34.4]}
29... f4 {[%clk 0:00:15.7]} 30. Kg2 {[%clk 0:01:20.7]} 30... fxg3 {[%clk
0:00:15.1]} 31. fxg3 {[%clk 0:01:21.6]} 31... Qd6 {[%clk 0:00:11.4]} 32. Qc3+
{[%clk 0:01:15]} 32... Qf6 {[%clk 0:00:11.5]} 33. Qd2 {[%clk 0:01:11.6]} 33...
Rd6 {[%clk 0:00:11.8]} 34. Rd4 {[%clk 0:01:06.3]} 34... R8d7 {[%clk 0:00:10.7]}
35. Rd1 {[%clk 0:01:04]} 35... Qe5 {[%clk 0:00:09.1]} 36. Rd3 {[%clk 0:01:00.2]}
36... f5 {[%clk 0:00:08.4]} 37. Re1 {[%clk 0:00:58.1]} 37... Qf6 {[%clk
0:00:08.6]} 38. Re8 {[%clk 0:00:33.6]} 38... f4 {[%clk 0:00:08.4]} 39. Qxf4
{[%clk 0:00:23.8]} 39... Qxf4 {[%clk 0:00:08.1]} 40. gxf4 {[%clk 0:00:24.7]}
40... Bxd5 {[%clk 0:00:08.8]} 41. Bxd5 {[%clk 0:00:22.5]} 41... Rxd5 {[%clk
0:00:09.7]} 42. Rxd5 {[%clk 0:00:16.4]} 42... Rxd5 {[%clk 0:00:10.6]} 43. Kf3
{[%clk 0:00:15.8]} 43... Rd2 {[%clk 0:00:09.9]} 44. a4 {[%clk 0:00:10.1]} 44...
bxa4 {[%clk 0:00:05.6]} 45. bxa4 {[%clk 0:00:11]} 45... Rd3+ {[%clk 0:00:06.1]}
46. Ke4 {[%clk 0:00:07.5]} 46... Ra3 {[%clk 0:00:06.3]} 47. Ke5 {[%clk
0:00:06.8]} 47... Rxa4 {[%clk 0:00:06.5]} 48. Re7+ {[%clk 0:00:07.2]} 48... Kh6
{[%clk 0:00:06.6]} 49. Ra7 {[%clk 0:00:07.6]} 49... Ra5+ {[%clk 0:00:06.7]} 50.
Ke4 {[%clk 0:00:05.4]} 50... Ra4+ {[%clk 0:00:04.7]} 51. Ke5 {[%clk 0:00:04.8]}
51... Ra1 {[%clk 0:00:04.9]} 52. Ra8 {[%clk 0:00:04.5]} 52... Kg7 {[%clk
0:00:03.1]} 53. Ra7+ {[%clk 0:00:03.5]} 53... Kh6 {[%clk 0:00:02.9]} 54. Kf6
{[%clk 0:00:04.4]} 54... Ra5 {[%clk 0:00:02.2]} 55. Ke6 {[%clk 0:00:02.3]} 55...
Rf5 {[%clk 0:00:03.1]} 56. Rxa6 {[%clk 0:00:02.5]} 56... Rxf4 {[%clk 0:00:03.6]}
57. Ke5 {[%clk 0:00:03]} 57... Rxh4 {[%clk 0:00:04.1]} 58. Kf6 {[%clk
0:00:03.4]} 58... Rg4 {[%clk 0:00:04.6]} 59. Ra8 {[%clk 0:00:03.2]} 59... Rf4+
{[%clk 0:00:05.1]} 60. Ke5 {[%clk 0:00:03.6]} 60... Rf5+ {[%clk 0:00:05.7]} 61.
Ke4 {[%clk 0:00:04.5]} 61... h4 {[%clk 0:00:05.6]} 62. Rh8+ {[%clk 0:00:04.5]}
62... Kg5 {[%clk 0:00:06.2]} 63. Rg8 {[%clk 0:00:05]} 63... h3 {[%clk 0:00:06]}
64. Rh8 {[%clk 0:00:05.1]} 64... Kg4 {[%clk 0:00:06.1]} 65. Rh6 {[%clk
0:00:04.4]} 65... g5 {[%clk 0:00:04.1]} 66. Ke3 {[%clk 0:00:04.5]} 66... Re5+
{[%clk 0:00:04.1]} 67. Kf2 {[%clk 0:00:04.4]} 67... Ra5 {[%clk 0:00:04.4]} 68.
Kg1 {[%clk 0:00:03.6]} 68... Ra1+ {[%clk 0:00:04.5]} 69. Kh2 {[%clk 0:00:03.6]}
69... Ra2+ {[%clk 0:00:05.1]} 70. Kh1 {[%clk 0:00:03.7]} 70... Kg3 {[%clk
0:00:05.9]} 71. Ra6 {[%clk 0:00:02.4]} 71... Rxa6 {[%clk 0:00:05.5]} 0-1